bitfinex-derivatives/quotes_SOLF0:USTF0_20250127
["timestamp","ask_amount","ask_price","bid_price","bid_amount"]
[1737981470527,0.03393174,225.64,225.6,0.03101636]
[1737981471926,0.03393174,225.64,225.63,4.434]
[1737981472129,16.63976423,225.78,225.6,0.03101636]
[1737981472328,16.63976423,225.78,225.6,0.79768381]
[1737981472628,2.7721,225.82,225.62,16.63976423]
[1737981472922,2.7721,225.82,225.59,1.3648]
[1737981473127,2.7721,225.82,225.53,1.3763]
[1737981473128,16.63976423,225.71,225.53,1.3763]
[1737981473429,1.3951,225.7,225.54,0.79790174]
[1737981473725,0.03074241,225.64,225.6,0.02802762]
[1737981474130,0.03074241,225.64,225.6,4.46242762]
[1737981475125,0.03074241,225.64,225.62,4.434]
[1737981475326,0.03074241,225.64,225.6,0.02802762]
[1737981475732,0.03074241,225.64,225.63,4.434]
[1737981480134,16.63976423,225.79,225.62,16.63976423]
[1737981480333,16.63976423,225.79,225.63,2.7646]
[1737981480634,4.4319,225.74,225.63,2.7646]
[1737981480931,16.63976423,225.79,225.63,2.7646]
[1737981481132,16.63976423,225.75,225.61,1.35]
[1737981481334,4.4327,225.7,225.69,0.02881014]
[1737981481530,0.03319963,225.73,225.69,0.02881014]
[1737981481833,2.846,225.89,225.71,16.63976423]
[1737981482432,2.846,225.89,225.72,2.7853]
[1737981482731,2.846,225.89,225.75,10.3546074]
[1737981482932,7.2749,225.89,225.75,10.3546074]
[1737981483132,0.02542338,225.83,225.78,0.03145089]
[1737981483530,0.02542338,225.83,225.78,4.46235089]
[1737981484235,0.02542338,225.83,225.79,4.4308]
[1737981485135,0.02542338,225.83,225.78,0.03145089]
[1737981485734,0.02542338,225.83,225.76,4.4314]
[1737981486033,0.02542338,225.83,225.72,2.7853]
[1737981486934,0.02542338,225.83,225.75,0.02835934]
[1737981488136,4.45552338,225.83,225.75,4.45975934]
[1737981488327,4.45552338,225.83,225.75,0.02835934]
[1737981488731,4.45552338,225.83,225.77,4.4312]
[1737981488929,0.02542338,225.83,225.75,0.02835934]
[1737981489135,0.02542338,225.83,225.8,4.4306]
[1737981489737,0.02542338,225.83,225.79,4.4308]
[1737981490035,0.02542338,225.83,225.75,0.02835934]
[1737981490237,4.45562338,225.83,225.77,4.4311]
[1737981490432,0.02542338,225.83,225.75,0.02835934]
[1737981491338,0.02542338,225.83,225.75,16.59698233]
[1737981491638,0.02542338,225.83,225.82,4.4302]
[1737981492233,0.02542338,225.83,225.8,0.03069828]
[1737981492833,4.45562338,225.83,225.8,0.03069828]
[1737981493239,0.02542338,225.83,225.8,0.03069828]
[1737981493840,4.4319,225.74,225.68,1.3191]
[1737981494035,16.56862299,225.79,225.68,1.3191]
[1737981494539,4.4321,225.73,225.68,1.3191]
[1737981495033,0.03095733,225.73,225.68,5.78338555]
[1737981495238,0.03095733,225.73,225.68,0.03128555]
[1737981495535,0.03095733,225.73,225.68,4.46428555]
[1737981495735,0.03095733,225.73,225.68,0.03128555]
[1737981496740,0.03095733,225.73,225.71,4.4323]
[1737981497840,0.03095733,225.73,225.68,0.03128555]
[1737981500142,4.46295733,225.73,225.68,4.46418555]
[1737981500442,4.46295733,225.73,225.68,0.03128555]
[1737981500743,4.4324,225.71,225.68,0.03128555]
[1737981500945,0.03095733,225.73,225.68,0.03128555]
[1737981501143,4.46295733,225.73,225.68,4.46408555]
[1737981501545,0.03095733,225.73,225.68,4.46408555]
[1737981501745,0.03095733,225.73,225.69,4.4326]
[1737981502545,0.03095733,225.73,225.68,0.03128555]
[1737981502745,0.03095733,225.73,225.71,4.4324]
[1737981503043,0.03095733,225.73,225.68,0.03128555]
[1737981503945,0.03095733,225.73,225.72,4.4322]
[1737981504545,0.03095733,225.73,225.71,4.4324]
[1737981504845,0.03095733,225.73,225.68,0.03128555]
[1737981505141,0.03095733,225.73,225.7,4.4325]
[1737981506542,4.4324,225.71,225.68,0.03128555]
[1737981506745,10.39442791,225.73,225.68,0.03128555]
[1737981508647,4.4326,225.71,225.68,0.03128555]
[1737981509448,4.4326,225.71,225.66,4.42130374]
[1737981509746,10.39442791,225.73,225.62,2.7287]
[1737981509945,10.36347058,225.7,225.55,10.36347058]
[1737981510142,10.36347058,225.7,225.56,1.3624]
[1737981510342,4.4334,225.66,225.56,1.3624]
[1737981510640,0.03359692,225.65,225.61,0.03130742]
[1737981511050,0.03359692,225.65,225.61,10.394778]
[1737981511349,10.36347058,225.8,225.7,4.4325]
[1737981511546,4.4315,225.76,225.7,4.4325]
[1737981512445,0.02808179,225.75,225.71,0.03366186]
[1737981512646,10.36347058,225.77,225.71,0.03366186]
[1737981512851,0.03129375,225.75,225.71,0.03366186]
[1737981513051,4.4322,225.72,225.71,0.03366186]
[1737981514654,4.4331,225.68,225.62,1.3918]
[1737981515849,0.02821834,225.67,225.63,0.0287073]
[1737981516249,0.02821834,225.67,225.64,4.4338]
[1737981516451,0.02821834,225.67,225.63,0.0287073]
[1737981517653,0.02821834,225.67,225.63,4.4627073]
[1737981518151,0.02821834,225.67,225.63,0.0287073]
[1737981519952,0.02821834,225.67,225.65,4.4335]
[1737981520856,0.02821834,225.67,225.66,4.4334]
[1737981523454,0.02821834,225.67,225.63,0.0287073]
[1737981523655,0.02821834,225.67,225.64,4.4336]
[1737981523854,0.02821834,225.67,225.63,0.0287073]
[1737981524453,0.02821834,225.67,225.65,4.4336]
[1737981524754,0.02821834,225.67,225.63,0.0287073]
[1737981526055,0.02821834,225.67,225.66,4.4334]
[1737981526356,0.02821834,225.67,225.63,0.0287073]
[1737981526556,0.02821834,225.67,225.66,4.4334]
[1737981527258,0.02821834,225.67,225.65,4.4336]
[1737981528058,0.02821834,225.67,225.66,4.4334]
[1737981528354,1.4241,225.82,225.63,0.0287073]
[1737981528556,1.4241,225.82,225.62,1.3918]
[1737981529058,4.432,225.74,225.62,1.3918]
[1737981529356,1.4241,225.82,225.62,1.3918]
[1737981529556,0.02908158,225.7,225.66,0.0327697]
[1737981529758,4.4324,225.72,225.62,1.3918]
[1737981529954,0.03370063,225.7,225.68,4.433]
[1737981530955,0.03370063,225.7,225.66,0.03145677]
[1737981531160,0.03370063,225.7,225.69,4.4328]
[1737981532658,0.03370063,225.7,225.66,0.03145677]
[1737981533363,0.03370063,225.7,225.69,4.4328]
[1737981537367,11.78614402,225.82,225.75,4.4316]
[1737981538069,1.3819,225.84,225.72,10.36204402]
[1737981538263,1.3449,225.89,225.78,10.36204402]
[1737981538668,4.4287,225.91,225.85,4.4296]
[1737981538965,10.36204402,225.92,225.78,10.36204402]
[1737981539357,14.79044402,225.92,225.78,10.36204402]
[1737981539558,10.36204402,225.92,225.78,10.36204402]
[1737981539758,0.02449056,225.87,225.83,0.02987895]
[1737981540566,10.36204402,225.86,225.83,0.02987895]
[1737981541667,4.4297,225.85,225.83,0.02987895]
[1737981542168,10.36204402,225.86,225.83,0.02987895]
[1737981542463,0.02449056,225.87,225.83,0.02987895]
[1737981542662,0.02449056,225.87,225.84,10.36204402]
[1737981543161,0.02449056,225.87,225.86,4.4295]
[1737981544564,10.36204402,226.01,225.84,1.4524]
[1737981544770,10.36204402,226.08,225.93,10.36204402]
[1737981545162,24.48332352,226.12,226.0,10.36204402]
[1737981545767,24.48332352,226.12,226.04,0.02961205]
[1737981547672,4.4242,226.13,226.04,0.02961205]
[1737981548072,4.4242,226.13,226.04,4.45551205]
[1737981548370,16.52919999,226.18,226.04,0.02961205]
[1737981548672,16.52919999,226.22,226.07,4.4252]
[1737981548969,16.52919999,226.22,226.09,0.0322525]
[1737981549666,4.4227,226.21,226.09,0.0322525]
[1737981549870,25.85362352,226.23,226.07,3.08]
[1737981549871,24.48332352,226.23,226.07,3.08]
[1737981550071,24.48332352,226.23,226.1,16.52919999]
[1737981550276,24.48332352,226.23,226.13,0.02850958]
[1737981550572,16.52919999,226.31,226.13,0.02850958]
[1737981550967,16.52919999,226.31,226.11,1.3226]
[1737981551168,16.52919999,226.31,226.2,0.03190616]
[1737981551470,4.4223,226.23,226.2,0.03190616]
[1737981551773,4.4223,226.23,226.14,4.4239]
[1737981551972,4.4228,226.21,226.19,0.0322356]
[1737981552468,16.52919999,226.23,226.05,16.52919999]
[1737981552674,4.4235,226.17,226.05,16.52919999]
[1737981552873,16.52919999,226.27,226.05,16.52919999]
[1737981553171,4.4227,226.21,226.11,4.4244]
[1737981553478,4.4227,226.21,226.05,16.52919999]
[1737981553671,0.02911086,226.18,226.14,0.03102893]
[1737981553875,0.02911086,226.18,226.14,4.45492893]
[1737981554176,0.02911086,226.18,226.14,0.03102893]
[1737981556475,1.38461086,226.18,226.01,1.4625]
[1737981556678,1.38461086,226.18,225.97,19.60919999]
[1737981556679,16.52919999,226.15,225.97,1.3635]
[1737981556881,4.4252,226.08,226.01,4.4265]
[1737981557280,16.52919999,226.11,226.01,4.4265]
[1737981557476,0.02969391,226.07,226.02,0.02819788]
[1737981558371,0.02969391,226.07,226.03,4.4261]
[1737981558579,0.02969391,226.07,226.02,0.02819788]
[1737981558969,0.02969391,226.07,226.04,4.4259]
[1737981559179,0.02969391,226.07,226.02,0.02819788]
[1737981559679,4.4261,226.03,226.02,0.02819788]
[1737981559879,0.02969391,226.07,226.02,0.02819788]
[1737981560675,0.02969391,226.07,226.06,4.4255]
[1737981561579,0.02969391,226.07,226.04,4.4259]
[1737981561779,0.02969391,226.07,226.02,0.02819788]
[1737981562378,4.4261,226.04,226.02,0.02819788]
[1737981562578,0.02969391,226.07,226.02,0.02819788]
[1737981563076,4.4261,226.03,226.02,0.02819788]
[1737981563276,16.5588939,226.07,226.02,0.02819788]
[1737981563477,0.02969391,226.07,226.02,0.02819788]
[1737981563674,4.45509391,226.07,226.02,0.02819788]
[1737981564082,0.02969391,226.07,226.02,0.02819788]
[1737981564482,0.02969391,226.07,226.06,4.4255]
[1737981566482,0.02969391,226.07,226.04,4.4258]
[1737981566683,0.02969391,226.07,226.02,1.39719788]
[1737981567485,0.02969391,226.07,226.06,4.4255]
[1737981568091,1.4076,226.17,226.04,16.52919999]
[1737981568292,16.52919999,226.2,226.04,16.52919999]
[1737981568593,4.4234,226.17,226.04,16.52919999]
[1737981568787,4.4234,226.17,226.11,4.4244]
[1737981568990,4.4234,226.17,226.04,16.52919999]
[1737981569195,0.03064282,226.16,226.12,0.03218032]
[1737981569394,0.03064282,226.16,226.12,4.45648032]
[1737981570993,0.03064282,226.16,226.12,0.03218032]
[1737981572192,0.03064282,226.16,226.14,4.4239]
[1737981572791,0.03064282,226.16,226.12,4.45648032]
[1737981573192,0.03064282,226.16,226.12,0.03218032]
[1737981573397,0.03064282,226.16,226.14,4.424]
[1737981573898,0.03064282,226.16,226.15,4.4238]
[1737981574095,0.03064282,226.16,226.04,16.52919999]
[1737981574496,0.03064282,226.16,226.09,10.32360378]
[1737981574699,0.03064282,226.16,226.15,4.4238]
[1737981575495,0.03064282,226.16,226.13,0.03395976]
[1737981575696,4.424,226.14,226.13,0.03395976]
[1737981578002,4.424,226.14,226.02,1.369]
[1737981578003,4.4248,226.1,226.02,1.369]
[1737981578303,1.3987,226.15,226.02,5.7953]
[1737981578503,16.52600169,226.13,225.95,1.3319]
[1737981578897,4.4246,226.11,226.06,4.4255]
[1737981579203,0.03126972,226.06,226.02,0.03027965]
[1737981579406,4.4246,226.11,226.02,0.03027965]
[1737981579604,0.02921992,226.06,226.02,0.03027965]
[1737981579804,1.3987,226.15,226.02,0.03027965]
[1737981580004,0.03110881,226.06,226.02,0.03027965]
[1737981580305,1.3987,226.15,226.02,0.03027965]
[1737981580600,16.52600169,226.17,226.02,0.03027965]
[1737981580905,0.03185973,226.11,226.02,2.6868]
[1737981581204,0.03185973,226.11,226.07,0.03326823]
[1737981581408,0.03185973,226.11,226.09,4.4248]
[1737981581705,0.03185973,226.11,226.07,0.03326823]
[1737981582997,0.03185973,226.11,226.1,4.4248]
[1737981584105,0.03185973,226.11,226.08,4.425]
[1737981584306,0.03185973,226.11,226.07,0.03326823]
[1737981585105,0.03185973,226.11,226.09,4.4248]
[1737981585705,0.03185973,226.11,226.08,4.4251]
[1737981585905,0.03185973,226.11,226.07,0.03326823]
[1737981586303,4.4248,226.1,226.07,0.03326823]
[1737981588403,4.4248,226.1,226.07,4.45856823]
[1737981588605,0.03185973,226.11,226.07,4.45856823]
[1737981592504,4.4252,226.08,226.07,0.03326823]
[1737981592912,0.03185973,226.11,225.92,16.52600169]
[1737981593109,4.4259,226.05,226.0,4.4267]
[1737981594015,4.45468146,226.05,226.0,4.45800955]
[1737981594212,4.45468146,226.05,226.0,0.03130955]
[1737981594514,4.4261,226.04,226.0,0.03130955]
[1737981594812,0.02878146,226.05,226.0,0.03130955]
[1737981595013,4.45468146,226.05,226.0,4.45780955]
[1737981595611,0.02878146,226.05,226.02,4.4263]
[1737981596111,0.02878146,226.05,226.0,0.03130955]
[1737981596318,0.02878146,226.05,226.04,4.4259]
[1737981597715,0.02878146,226.05,226.0,0.03130955]
[1737981599614,4.426,226.04,226.0,0.03130955]
[1737981599913,0.02878146,226.05,226.0,0.03130955]
[1737981601614,0.02878146,226.05,225.92,0.79649646]
[1737981601615,10.33411105,226.02,225.87,5.52605714]
[1737981601920,4.4283,225.93,225.86,190.59076875]
[1737981602115,10.33411105,225.94,225.86,186.16126875]
[1737981602325,10.33411105,225.88,225.86,186.16126875]
[1737981603021,14.76321105,225.88,225.85,0.03227838]
[1737981603222,10.33411105,225.88,225.85,0.03227838]
[1737981603623,0.02842715,225.89,225.85,0.03227838]
[1737981603818,0.02842715,225.89,225.87,10.33411105]
[1737981604023,1.3345,226.01,225.87,10.33411105]
[1737981604218,10.33411105,226.06,225.9,10.33411105]
[1737981604620,1.4418,226.07,225.99,4.4268]
[1737981605124,0.02993191,226.05,226.01,0.03336264]
[1737981605513,0.02993191,226.05,225.9,16.54144119]
[1737981605714,4.3607,226.12,226.01,0.02934842]
[1737981605921,4.4241,226.14,225.95,1.3367]
[1737981606123,4.4241,226.14,226.04,0.02967637]
[1737981606424,1.4418,226.15,226.04,0.02967637]
[1737981606724,4.4242,226.13,226.04,4.45557637]
[1737981607020,4.4242,226.13,226.04,0.02967637]
[1737981607222,0.02894776,226.11,226.07,4.4253]
[1737981607423,0.02894776,226.11,226.04,0.02967637]
[1737981607623,0.02894776,226.11,225.99,0.79627737]
[1737981607824,0.02894776,226.11,226.05,0.0312546]
[1737981609515,0.02894776,226.11,226.08,4.4251]
[1737981609716,0.02894776,226.11,226.06,4.1529]
[1737981609922,1.3477,226.23,226.06,20.69434119]
[1737981610322,1.4065,226.3,226.06,20.69434119]
[1737981610526,4.4228,226.2,226.06,20.69434119]
[1737981610724,1.3896,226.29,226.06,20.69434119]
[1737981610925,16.54144119,226.23,226.06,20.69434119]
[1737981611223,4.4234,226.17,226.14,0.02958837]
[1737981611418,0.03019974,226.19,226.14,0.02958837]
[1737981611829,4.4232,226.18,226.14,0.02958837]
[1737981612024,0.03019974,226.19,226.14,0.02958837]
[1737981614227,4.4232,226.18,226.14,0.02958837]
[1737981614426,0.03019974,226.19,226.14,0.02958837]
[1737981616928,4.45329974,226.19,226.14,0.02958837]
[1737981617227,0.03019974,226.19,226.14,0.02958837]
[1737981618424,17.94554119,226.31,226.14,16.57102956]
[1737981618630,4.4214,226.28,226.15,1.4612]
[1737981618822,16.54144119,226.35,226.16,1.3855]
[1737981619128,4.4214,226.27,226.22,4.4224]
[1737981619729,4.45514797,226.27,226.22,4.45234706]
[1737981619923,0.03374797,226.27,226.22,0.02994706]
[1737981620127,0.03374797,226.27,226.24,4.4219]
[1737981620327,0.03374797,226.27,226.22,0.02994706]
[1737981621822,0.03374797,226.27,226.26,4.4216]
[1737981624528,0.03374797,226.27,226.24,4.422]
[1737981624728,0.03374797,226.27,226.22,0.02994706]
[1737981625625,0.03374797,226.27,226.23,4.4222]
[1737981626230,4.45524797,226.27,226.22,4.45214706]
[1737981626432,0.03374797,226.27,226.22,0.02994706]
[1737981627132,0.03374797,226.27,226.23,4.4221]
[1737981627432,0.03374797,226.27,226.22,0.02994706]
[1737981627831,0.03374797,226.27,226.26,4.4216]
[1737981628025,0.03374797,226.27,226.22,0.02994706]
[1737981629834,0.03374797,226.27,226.24,4.422]
[1737981630332,4.45524797,226.27,226.23,4.4222]
[1737981631033,0.03374797,226.27,226.22,0.02994706]
[1737981631635,3.02,226.26,225.95,17.7107]
[1737981631830,16.54144119,226.18,226.02,2.8166]
[1737981632130,16.54144119,226.14,226.03,0.79594369]
[1737981632335,16.54144119,226.14,225.97,0.79594369]
[1737981632536,10.33687086,226.1,225.98,0.79621446]
[1737981632737,4.4251,226.09,225.99,4.4269]
[1737981632929,0.0291339,226.06,226.02,0.02842698]
[1737981633135,10.33687086,226.13,226.02,0.02842698]
[1737981633433,0.03006393,226.06,226.02,0.02842698]
[1737981633937,0.03006393,226.06,226.04,4.4259]
[1737981634127,10.33687086,226.16,226.02,0.02842698]
[1737981634328,10.33687086,226.19,226.03,10.33687086]
[1737981634535,16.52693805,226.21,226.06,4.4255]
[1737981634736,16.52693805,226.17,226.04,1.4024]
[1737981635039,4.4237,226.16,226.04,1.4024]
[1737981635238,0.03068452,226.13,226.08,0.02939886]
[1737981635639,4.4246,226.11,226.08,0.02939886]
[1737981635840,16.55762257,226.13,226.08,0.02939886]
[1737981636441,0.03068452,226.13,226.08,0.02939886]
[1737981639236,0.03068452,226.13,226.08,4.45449886]
[1737981639536,0.03068452,226.13,226.08,0.02939886]
[1737981639742,0.03068452,226.13,226.08,4.45449886]
[1737981639942,0.03068452,226.13,226.08,0.02939886]
[1737981640444,0.03068452,226.13,226.1,4.4247]
[1737981641249,0.03068452,226.13,226.08,0.02939886]
[1737981642347,4.425,226.09,226.08,0.02939886]
[1737981642747,0.03068452,226.13,226.08,0.02939886]
[1737981642947,4.45508452,226.13,226.08,0.02939886]
[1737981643147,0.03068452,226.13,226.08,0.02939886]
[1737981643446,4.45508452,226.13,226.08,0.02939886]
[1737981643648,0.03068452,226.13,226.08,0.02939886]
[1737981644248,4.4246,226.11,226.08,0.02939886]
[1737981645842,0.03068452,226.13,226.08,0.02939886]
[1737981646349,0.03068452,226.13,226.0,1.3971]
[1737981647156,4.45508452,226.13,226.03,4.426]
[1737981647455,4.45508452,226.13,226.06,0.03294266]
[1737981647856,4.45508452,226.13,226.07,4.4253]
[1737981648060,4.4246,226.11,226.06,0.03294266]
[1737981648249,0.03068452,226.13,226.06,0.03294266]
[1737981648448,0.03068452,226.13,226.06,4.45844266]
[1737981648649,4.4244,226.12,226.06,4.45844266]
[1737981649258,0.03068452,226.13,226.06,0.03294266]
[1737981649750,4.45508452,226.13,226.08,4.425]
[1737981649950,0.03068452,226.13,226.06,0.03294266]
[1737981650753,4.45488452,226.13,226.08,4.4251]
[1737981650958,0.03068452,226.13,226.06,0.03294266]
[1737981651758,1.4632,226.24,226.06,0.82903532]
[1737981652058,1.4632,226.24,226.06,0.79609266]
[1737981652259,4.423,226.19,226.11,4.4245]
[1737981652452,4.423,226.19,226.06,0.79609266]
[1737981652759,0.02925356,226.15,226.14,4.4239]
[1737981655356,16.52693805,226.26,226.1,0.03240925]
[1737981655562,16.52693805,226.3,226.2,4.4228]
[1737981655860,4.4214,226.27,226.12,16.52693805]
[1737981656556,16.52693805,226.3,226.17,0.03048176]
[1737981657061,16.52693805,226.3,226.21,4.4225]
[1737981657560,16.52693805,226.3,226.23,0.031683]
[1737981657760,4.4213,226.28,226.23,0.031683]
[1737981658161,16.52693805,226.3,226.23,0.031683]
[1737981658362,4.4215,226.27,226.23,0.031683]
[1737981658562,2.2082,226.33,226.23,0.031683]
[1737981658563,16.52693805,226.25,226.23,0.031683]
[1737981659655,16.52693805,226.34,226.23,0.031683]
[1737981659961,4.4202,226.34,226.27,4.4214]
[1737981660158,16.52693805,226.39,226.27,4.4214]
[1737981660359,16.52693805,226.39,226.28,0.03080478]
[1737981660561,2.3362,226.38,226.28,0.03080478]
[1737981660766,16.52693805,226.35,226.28,0.03080478]
[1737981661166,4.421,226.29,226.28,0.03080478]
[1737981661967,4.4216,226.27,226.19,5.8036]
[1737981662168,4.4216,226.27,226.19,4.423]
[1737981662468,4.4216,226.27,226.2,4.4228]
[1737981662665,16.52693805,226.31,226.14,16.52693805]
[1737981662867,16.52693805,226.27,226.15,4.4236]
[1737981663067,0.02900147,226.25,226.2,0.02996339]
[1737981663571,4.4221,226.24,226.2,0.02996339]
[1737981663774,0.02900147,226.25,226.2,0.02996339]
[1737981664967,0.02900147,226.25,226.06,16.52693805]
[1737981665171,16.52693805,226.23,226.04,4.105]
[1737981665371,16.52693805,226.19,226.04,4.105]
[1737981665871,16.52693805,226.19,226.05,4.4256]
[1737981666174,0.03331859,226.14,226.1,0.02815504]
[1737981666564,4.4246,226.11,226.1,0.02815504]
[1737981667476,0.03331859,226.14,226.01,4.4263]
[1737981667673,1.334,226.14,225.94,16.52693805]
[1737981667968,2.2131,226.14,225.95,0.79638014]
[1737981668175,4.4258,226.05,225.98,4.427]
[1737981668566,16.52693805,226.11,225.92,4.105]
[1737981668768,4.4263,226.03,225.99,0.02993565]
[1737981669672,4.4267,226.01,225.99,0.02993565]
[1737981669874,0.03048731,226.04,225.99,0.02993565]
[1737981670275,4.4267,226.0,225.99,0.02993565]
[1737981670869,4.4272,225.98,225.86,16.52693805]
[1737981671778,4.4272,225.98,225.89,4.4288]
[1737981671978,4.4272,225.98,225.86,16.52693805]
[1737981672179,0.03340226,225.96,225.91,0.03376748]
[1737981673180,0.03340226,225.96,225.92,4.4281]
[1737981673571,0.03340226,225.96,225.91,0.03376748]
[1737981674977,0.03340226,225.96,225.93,4.428]
[1737981675581,2.26e-06,225.96,225.91,0.03376748]
[1737981675777,254.78,226.61,225.95,16.52693805]
[1737981675778,16.52693805,226.16,225.95,16.52693805]
[1737981675978,16.52693805,226.16,226.0,16.52693805]
[1737981676282,1.3628,226.19,226.0,16.52693805]
[1737981676483,16.52693805,226.16,225.96,4.1505]
[1737981676781,4.4257,226.05,225.98,4.4269]
[1737981676982,4.4257,226.05,226.04,0.02955903]
[1737981677175,0.03075365,226.08,225.96,4.1505]
[1737981677380,4.4256,226.06,225.99,4.4269]
[1737981677578,0.0325802,226.04,225.99,4.4269]
[1737981677982,0.0325802,226.04,225.99,4.45532991]
[1737981678281,0.0325802,226.04,226.02,4.4262]
[1737981678484,0.0325802,226.04,225.99,0.02842991]
[1737981678882,0.0325802,226.04,226.03,4.4261]
[1737981679182,0.0325802,226.04,225.99,0.02842991]
[1737981679580,0.0325802,226.04,226.0,4.4265]
[1737981679780,0.0325802,226.04,225.99,0.02842991]
[1737981680182,0.0325802,226.04,226.0,4.4267]
[1737981680480,0.0325802,226.04,225.99,0.02842991]
[1737981680881,4.4262,226.03,225.99,0.02842991]
[1737981681082,0.0325802,226.04,225.99,0.02842991]
[1737981682385,0.0325802,226.04,226.02,4.4263]
[1737981682685,0.0325802,226.04,225.99,0.02842991]
[1737981683985,4.4265,226.01,225.99,0.02842991]
[1737981685185,0.0325802,226.04,225.99,0.02842991]
[1737981686385,4.4267,226.01,225.99,0.02842991]
[1737981686578,0.0325802,226.04,225.99,0.02842991]
[1737981687987,4.4267,226.01,225.99,0.02842991]
[1737981688688,0.0325802,226.04,225.99,0.02842991]
[1737981688887,4.4267,226.0,225.99,0.02842991]
[1737981689088,0.0325802,226.04,225.99,0.02842991]
[1737981689391,4.4265,226.01,225.99,0.02842991]
[1737981691084,4.4267,226.0,225.99,0.02842991]
[1737981691695,4.4272,225.98,225.92,4.4283]
[1737981691891,4.4272,225.98,225.87,16.52693805]
[1737981692084,16.52693805,226.04,225.85,1.3933]
[1737981692294,4.4279,225.95,225.9,4.4287]
[1737981692789,4.428,225.94,225.9,0.03213588]
[1737981692988,0.03163825,225.95,225.9,0.03213588]
[1737981693694,4.4283,225.93,225.9,0.03213588]
[1737981693993,0.03163825,225.95,225.9,0.03213588]
[1737981694192,4.4283,225.93,225.9,0.03213588]
[1737981695396,4.4284,225.92,225.9,0.03213588]
[1737981696189,0.03163825,225.95,225.9,0.03213588]
[1737981696594,16.55658681,226.05,225.9,0.03213588]
[1737981696794,16.55658681,226.05,225.88,16.55658681]
[1737981697494,4.427,225.99,225.93,4.4281]
[1737981697696,16.55658681,226.05,225.93,4.4281]
[1737981697888,0.0340217,225.98,225.94,0.03294347]
[1737981698895,0.0340217,225.98,225.94,4.46084347]
[1737981699193,0.0340217,225.98,225.94,0.03294347]
[1737981699597,4.4275,225.96,225.94,0.03294347]
[1737981700094,4.4613217,225.98,225.94,0.03294347]
[1737981700595,0.0340217,225.98,225.94,0.03294347]
[1737981702197,4.4274,225.97,225.94,0.03294347]
[1737981702993,0.0340217,225.98,225.94,0.03294347]
[1737981703201,4.4277,225.95,225.94,0.03294347]
[1737981703698,0.0340217,225.98,225.94,0.03294347]
[1737981703898,1.4031,226.18,225.95,16.55658681]
[1737981704095,1.4902,226.18,225.96,2.7899]
[1737981704595,1.4902,226.18,225.99,16.55658681]
[1737981704992,0.03036013,226.1,226.05,0.03086473]
[1737981707092,4.425,226.09,226.05,0.03086473]
[1737981707299,0.03036013,226.1,226.05,0.03086473]
[1737981707601,4.4252,226.08,226.05,0.03086473]
[1737981708097,0.03036013,226.1,226.05,0.03086473]
[1737981708503,16.55658681,226.2,226.05,0.03086473]
[1737981708691,4.4232,226.18,226.08,4.4251]
[1737981708995,18.00998681,226.24,226.09,1.4276]
[1737981709190,4.4245,226.12,226.09,1.4276]
[1737981709598,0.02979505,226.13,226.09,1.4276]
[1737981709801,4.425,226.09,226.08,0.032421]
[1737981712400,0.02979505,226.13,226.08,0.032421]
[1737981713101,16.55658681,226.24,226.12,2.44973661]
[1737981713496,16.55658681,226.24,226.04,1.4124]
[1737981713697,4.4233,226.18,226.1,4.4248]
[1737981713998,4.4233,226.18,226.11,1.3844]
[1737981714194,4.4233,226.18,226.12,0.03205472]
[1737981714395,16.55658681,226.24,226.12,0.03205472]
[1737981714595,4.4234,226.17,226.12,0.03205472]
[1737981714800,16.55658681,226.24,226.12,0.03205472]
[1737981714998,4.4222,226.23,226.12,0.03205472]
[1737981715307,1.3911,226.37,226.15,16.55658681]
[1737981715603,1.3911,226.37,226.19,16.55658681]
[1737981716103,16.55658681,226.38,226.26,0.03394256]
[1737981716299,24.48332352,226.39,226.26,0.03394256]
[1737981716504,24.48332352,226.39,226.28,16.55658681]
[1737981716706,22.28382352,226.39,226.29,2.7357]
[1737981716904,20.08382352,226.39,226.32,16.55658681]
[1737981717106,20.08382352,226.39,226.32,16.58840063]
[1737981717405,20.08382352,226.39,226.36,4.4196]
[1737981717604,11.28452352,226.39,226.36,4.4196]
[1737981717805,11.28452352,226.59,226.32,16.58840063]
[1737981718001,11.28452352,226.59,226.36,16.55658681]
[1737981718303,11.28452352,226.59,226.43,0.03172425]
[1737981718498,4.4168,226.51,226.43,4.4183]
[1737981718704,11.28452352,226.59,226.48,0.02883068]
[1737981719007,4.4159,226.56,226.45,4.4179]
[1737981719210,2.8499,226.57,226.5,0.02903202]
[1737981720103,11.28452352,226.59,226.5,0.02903202]
[1737981720609,1.3462,226.63,226.5,0.02903202]